Cogmind - Beta 16 @@@ ROGUE MODE // 2026.01.08 @ 20:56:46 Player: Lazz Result: Destroyed by 6K-I3E(j) with Overtuned Pulse Rifle Performance ------------- Evolutions (0) 0 Regions Visited (4) 800 Robots Destroyed (13) 65 Value Destroyed (291) 291 Prototype IDs (1) 20 Alien Tech Used (0) 0 Bonus (0) 0 TOTAL SCORE: 1176 Bonus ------- None Cogmind --------- Core Integrity 0/250 Matter 263/300 Energy 58/100 System Corruption 0% Temperature Warm (192) Movement Rolling (110) Location -9/Recycling Parts ------- > --- POWER (1) -------- (None) > --- PROPULSION (2) --- Subdweller Monowheel > --- UTILITY (2) ------ Scrap Engine > --- WEAPON (2) ------- EM Pulse Gun Subdweller Machine Gun > --- INVENTORY (5) ---- Subdweller Optics Improved Terrain Scanner Propulsion Shielding Peak State ------------ > --- POWER ------------ (None) > --- PROPULSION ------- Subdweller Monowheel > --- UTILITY ---------- Scrap Engine > --- WEAPON ----------- EM Pulse Gun Subdweller Machine Gun > --- INVENTORY -------- Subdweller Optics Improved Terrain Scanner Propulsion Shielding [Rating: 23] Favorites ----------- Power Light Ion Engine Engine Light Ion Engine Propulsion Compact Wheel Wheel Compact Wheel Utility Small Storage Unit Device Seismic Detector Storage Small Storage Unit Weapon Light Assault Rifle Energy Gun EM Pulse Gun Ballistic Gun Light Assault Rifle Build | -11 -10 -10 -10 -9 ------- Run | Yrd Mat Min Sub Rec Slots Evolved . | . . . . . Power . | . . . . . Propulsion . | . . . . . Utility . | . . . . . Weapon . | . . . . . Parts Attached 19 | 7 . . 3 9 Power 3 | 1 . . . 2 Engine 3 | 1 . . . 2 Core . | . . . . . Reactor . | . . . . . Propulsion 6 | 2 . . 2 2 Treads . | . . . . . Leg . | . . . . . Wheel 6 | 2 . . 2 2 Hover . | . . . . . Flight . | . . . . . Utility 3 | 2 . . . 1 Device 2 | 1 . . . 1 Storage 1 | 1 . . . . Processor . | . . . . . Hackware . | . . . . . Protection . | . . . . . Artifact . | . . . . . Weapon 7 | 2 . . 1 4 Energy Gun 1 | . . . . 1 Energy Cannon . | . . . . . Ballistic Gun 6 | 2 . . 1 3 Ballistic Cannon . | . . . . . Launcher . | . . . . . Special Weapon . | . . . . . Impact Weapon . | . . . . . Slashing Weapon . | . . . . . Piercing Weapon . | . . . . . Special Melee Weapon . | . . . . . Unidentified Prototypes 1 | . . . . 1 Parts Lost 9 | . . . 4 5 Power 2 | . . . 1 1 Propulsion 5 | . . . 3 2 Utility . | . . . . . Weapon 2 | . . . . 2 Highest Loss Streak 5 | . . . 2 5 To Critical Strikes . | . . . . . Average Backups 6 | 4 6 7 7 7 Power . | . 1 1 1 . Propulsion 2 | 1 3 3 2 1 Utility 2 | . 1 2 2 3 Weapon 1 | 1 1 1 1 2 Tool/Special . | . . . . . Unused Backups 6 | . . . . 6 Power . | . . . . . Propulsion . | . . . . . Utility 4 | . . . . 4 Weapon 2 | . . . . 2 Tool/Special . | . . . . . Average Slot Usage (%) 98 | . 100 100 98 97 Engine 13 | . 14 14 13 13 Wheel 27 | . 28 28 26 26 Device 14 | . 14 14 14 14 Storage 13 | . 14 14 14 13 Ballistic Gun 27 | . 28 28 28 27 Peak Build Rating 23 | 7 7 7 8 23 Average Rating 8 | 5 7 7 7 10 On Entrance 5 | . 7 7 7 7 Avg Prop Armor Cover (%) . | . . . . . Naked Turns . | . . . . . Heaviest Build 20 | 11 11 11 11 20 Greatest Support 32 | 32 32 32 32 20 Greatest Overweight (x) 1 | 1 . . 1 . Average Overweight (x) . | . . . . . Largest Inventory Capacity 8 | 8 8 8 8 8 Average Capacity 7 | 7 8 8 8 7 Most Carried 8 | 6 7 7 8 8 Average Carried 6 | 4 6 7 7 7 Final Capacity 8 | 8 8 8 8 5 Final Carried 8 | 6 7 7 8 3 Class Distribution -------------------- 73% | Mutant 26% | Scavenger-Mutant Dominant Class ---------------- Mutant | -10/Materials Mutant | -10/Mines Mutant | -10/Subcaves Scavenger-Mutant | -9/Recycling Resources | -11 -10 -10 -10 -9 ----------- Run | Yrd Mat Min Sub Rec Matter Collected 426 | 300 . . 39 87 Remotely . | . . . . . Salvage Created 466 | 154 . . 89 223 Parts 37 | 11 . . 10 16 Haulers Intercepted . | . . . . . Recyclers Shooed 1 | 1 . . . . Parts Field Recycled . | . . . . . Retrieved Matter . | . . . . . Parts Self-Destructed 9 | . . . 9 . Prevented . | . . . . . Parts Restored . | . . . . . Kills | -11 -10 -10 -10 -9 ------- Run | Yrd Mat Min Sub Rec Combat Hostiles Destroyed 9 | . . . 5 4 Guns 9 | . . . 5 4 Classes Destroyed 6 | 2 . . 2 2 Tunneler 3 | 3 . . . . Recycler 1 | 1 . . . . Swarmer 4 | . . . 4 . Sentry 3 | . . . . 3 Subdweller 1 | . . . 1 . Scrapper 1 | . . . . 1 Best Kill Streak 4 | 3 . . 4 1 Combat Bots Only 4 | . . . 4 1 Max Kills in Single Turn 1 | 1 . . 1 1 Gunslinging . | . . . . . Exploded . | . . . . . Melee . | . . . . . Uniques/NPCs Destroyed . | . . . . . Combat | -11 -10 -10 -10 -9 -------- Run | Yrd Mat Min Sub Rec Hostile Shots Fired 117 | . . . 81 36 Missed 36 | . . . 29 7 Hits 81 | . . . 52 29 Projectile 81 | . . . 52 29 Critical Strikes 3 | . . . . 3 Damage Taken 1084 | . . . 486 598 Core 270 | . . . 146 124 Absorbed by Shields . | . . . . . Core Remaining (%) 100 | 100 . . . . Volleys Fired 45 | 16 . . 18 11 Largest 2 | 2 . . 2 2 Hottest 70 | 40 . . 40 70 Shots Fired 90 | 32 . . 36 22 Gun 90 | 32 . . 36 22 Cannon . | . . . . . Launcher . | . . . . . Special . | . . . . . Kinetic 89 | 32 . . 36 21 Thermal . | . . . . . Explosive . | . . . . . Electromagnetic 1 | . . . . 1 Robot Hit Streak 7 | 6 . . 4 7 Robot Miss Streak 3 | 3 . . 2 2 Penetration Max . | . . . . . Secondary Targets 1 | . . . 1 . Max Gunslinging Chain 1 | . . . 1 . Shots Hit Robots 59 | 20 . . 23 16 Core Hits 25 | 8 . . 9 8 Critical Kills . | . . . . . Critical Parts Destroyed . | . . . . . Critical Strikes . | . . . . . Melee Attacks . | . . . . . Impact . | . . . . . Slashing . | . . . . . Piercing . | . . . . . Sneak Attacks . | . . . . . Combat Hostiles . | . . . . . Follow-up Attacks . | . . . . . Damage Inflicted 587 | 160 . . 179 248 Guns 587 | 160 . . 179 248 Cannons . | . . . . . Explosions . | . . . . . Melee . | . . . . . Ramming . | . . . . . Kinetic 587 | 160 . . 179 248 Thermal . | . . . . . Explosive . | . . . . . Electromagnetic . | . . . . . Impact . | . . . . . Slashing . | . . . . . Piercing . | . . . . . Highest Corruption . | . . . . . Average Corruption . | . . . . . Corruption Purged . | . . . . . Corruption Blocked . | . . . . . Overload Shots . | . . . . . Overflow Damage . | . . . . . Projectiles . | . . . . . Explosions . | . . . . . Melee . | . . . . . Knockbacks . | . . . . . Impact . | . . . . . Kinetic . | . . . . . Secondary . | . . . . . Self-Inflicted Damage . | . . . . . Shots . | . . . . . Rammed . | . . . . . Targets Rammed . | . . . . . Kicked . | . . . . . Crushed . | . . . . . Highest Temperature 180 | . . . . 180 Average Temperature 64 | . . . . 64 Received Heat Transfer 582 | . . . 192 390 Siege Activations . | . . . . . Martial Activations . | . . . . . Shielding Activations . | . . . . . Robots Disrupted . | . . . . . Combat Hostiles . | . . . . . Robots Corrupted . | . . . . . Combat Hostiles . | . . . . . Parts Fried . | . . . . . Impact Corruptions . | . . . . . Robots Melted . | . . . . . Combat Hostiles . | . . . . . Parts Melted 1 | . . . . 1 Heat Transferred . | . . . . . Parts Sabotaged . | . . . . . Parts Stolen . | . . . . . Parts Stripped . | . . . . . Power Chain Reactions . | . . . . . Alert | -11 -10 -10 -10 -9 ------- Run | Yrd Mat Min Sub Rec Maximum Alert Level . | . . . . . Low Security (%) 100 | 100 100 100 . 100 Level 1 . | . . . . . Level 2 . | . . . . . Level 3 . | . . . . . Level 4 . | . . . . . Level 5 . | . . . . . High Security . | . . . . . Max Security . | . . . . . Peak Influence 158 | 10 6 . . 158 Initial 45 | . . . . 45 Average 55 | 1 . . . 111 Influence Increases 360 | 20 6 . 140 194 Destroy 0b10 Robot/C 140 | . . . 80 60 Destroy 0b10 Robot/NC 20 | 20 . . . . Successful Hack 18 | . 6 . . 12 Select Force Hacks 120 | . . . . 120 Destroy Structure 2 | . . . . 2 Lose Combat Pursuer 60 | . . . 60 . Influence Decreases 291 | 20 6 . 46 219 Entered New Map 49 | . . . . 49 Time Decay 162 | 20 6 . 16 120 Lost Part 80 | . . . 30 50 Squads Dispatched 1 | . 1 . . . Investigation 1 | . 1 . . . Extermination . | . . . . . Reinforcement . | . . . . . Assault . | . . . . . Garrison . | . . . . . Intercept . | . . . . . Searches Triggered . | . . . . . Construction Impeded . | . . . . . Haulers Reinforced . | . . . . . Active Scanning Responses . | . . . . . Cargo Convoy Interrupts . | . . . . . Stealth | -11 -10 -10 -10 -9 --------- Run | Yrd Mat Min Sub Rec Distress Signals . | . . . . . Communications Jammed . | . . . . . Distress Signals . | . . . . . Times Spotted 15 | . . . 10 5 Peak Tracking Total 6 | . . . 6 5 Tactical Retreats 2 | . . . 2 . Traps | -11 -10 -10 -10 -9 ------- Run | Yrd Mat Min Sub Rec Traps Triggered 1 | . 1 . . . Indirectly . | . . . . . Trap Hack Attempts . | . . . . . Triggered . | . . . . . Disarmed . | . . . . . Reprogrammed . | . . . . . Reused . | . . . . . Traps Extracted . | . . . . . Installed . | . . . . . Triggered . | . . . . . Machines | -11 -10 -10 -10 -9 ---------- Run | Yrd Mat Min Sub Rec Machines Disabled 1 | . . . . 1 Max in Single Turn 1 | . . . . 1 Machines Repaired . | . . . . . Machines Dismantled . | . . . . . Machines Sabotaged . | . . . . . Overloaded Fab Kills . | . . . . . Hacking | -11 -10 -10 -10 -9 --------- Run | Yrd Mat Min Sub Rec Machines Accessed 10 | . 1 1 1 7 Terminals 4 | . 1 1 . 2 Fabricators . | . . . . . Repair Stations . | . . . . . Recycling Units 4 | . . . . 4 Scanalyzers . | . . . . . Garrison Access . | . . . . . Total Hacks 28 | . 3 3 5 17 Successful 17 | . 2 1 5 9 Failed 11 | . 1 2 . 8 Catastrophic 1 | . . . . 1 Database Lockouts . | . . . . . Manual 12 | . 2 4 . 6 Terminals 15 | . 3 3 . 9 Fabricators . | . . . . . Repair Stations . | . . . . . Recycling Units 6 | . . . . 6 Scanalyzers . | . . . . . Garrison Access . | . . . . . Terminal Hacks 13 | . 2 1 5 5 Record 5 | . . . 5 . Part Schematic 1 | . . . . 1 Terminal Index 2 | . 1 1 . . Maintenance Status 1 | . . . . 1 Zone Layout 2 | . 1 . . 1 Release Object 2 | . . . . 2 Fabricator Hacks . | . . . . . Repair Station Hacks . | . . . . . Recycling Unit Hacks . | . . . . . Scanalyzer . | . . . . . Garrison Access Hacks . | . . . . . Unauthorized Hacks 4 | . . . . 4 Terminals . | . . . . . Fabricators . | . . . . . Repair Stations . | . . . . . Recycling Units 4 | . . . . 4 Tunnel 4 | . . . . 4 Scanalyzers . | . . . . . Garrison Access . | . . . . . Data Cores Recovered . | . . . . . Used . | . . . . . Hacking Detections 6 | . 1 1 . 4 Full Trace Events 1 | . . . . 1 Feedback Events . | . . . . . Feedback Blocked . | . . . . . Robot Schematics Acquired . | . . . . . Robots Built . | . . . . . Authchips . | . . . . . Time . | . . . . . Total Robot Build Rating . | . . . . . Part Schematics Acquired 1 | . . . . 1 Parts Built . | . . . . . Authchips . | . . . . . Time . | . . . . . Total Part Build Rating . | . . . . . Part Studies Acquired . | . . . . . Parts Repaired . | . . . . . Time . | . . . . . Parts Recycled . | . . . . . Recycled Matter . | . . . . . Retrieved Matter . | . . . . . Retrieved Components . | . . . . . Parts Scanalyzed . | . . . . . Part Schematics Acquired . | . . . . . Parts Damaged . | . . . . . Bothacking | -11 -10 -10 -10 -9 ------------ Run | Yrd Mat Min Sub Rec Used RIF Installer . | . . . . . Robots Hacked . | . . . . . Non-combat . | . . . . . Combat . | . . . . . Robot Hacks Applied . | . . . . . Relay Couplers Released . | . . . . . Fabnet Peak Effective % . | . . . . . Robots Rewired . | . . . . . Allies Hacked . | . . . . . Hacks Repelled . | . . . . . Allies | -11 -10 -10 -10 -9 -------- Run | Yrd Mat Min Sub Rec Total Allies . | . . . . . Largest Group . | . . . . . Highest-Rated Group . | . . . . . Highest-Rated Ally . | . . . . . Total Orders . | . . . . . Ally Attacks . | . . . . . Total Damage . | . . . . . Kills . | . . . . . Allies Corrupted . | . . . . . Allies Melted . | . . . . . Intel | -11 -10 -10 -10 -9 ------- Run | Yrd Mat Min Sub Rec Active Infowar (turns) 838 | 34 84 48 437 235 Seismic 838 | 34 84 48 437 235 Robot Analysis Total . | . . . . . Derelict Logs Recovered . | . . . . . Drone Launches . | . . . . . Drone Recoveries . | . . . . . Exploration | -11 -10 -10 -10 -9 ------------- Run | Yrd Mat Min Sub Rec Turns Passed 930 | 120 84 48 437 241 Spaces Moved 841 | 53 84 48 412 244 Core 17 | 17 . . . . Treads . | . . . . . Legs . | . . . . . Wheels 824 | 36 84 48 412 244 Hover . | . . . . . Flight . | . . . . . Fastest Speed 50 | 50 100 100 80 80 Average Speed 90 | 89 100 100 93 80 Slowest Speed 110 | 100 100 100 100 110 Overloaded Moves . | . . . . . Propulsion Burnouts . | . . . . . Robots Hopped . | . . . . . Potential Cave-ins . | . . . . . Cave-ins Triggered . | . . . . . Exploration Rate (%) 23 | 4 15 17 32 49 Regions Visited 4 Branch Regions 3 Pre-discovered Areas 5 | . . . 1 4 Known Exits Taken 1 | . . . 1 . Unknown Exits Taken 3 | 1 1 1 . . Scrap Searched . | . . . . . Spaces Dug . | . . . . . Terrain Destroyed 1 | . . . . 1 Melee . | . . . . . Projectile 1 | . . . . 1 AOE . | . . . . . Terrain Rammed . | . . . . . Walls Destroyed . | . . . . . Machines Disabled . | . . . . . Actions | -11 -10 -10 -10 -9 --------- Run | Yrd Mat Min Sub Rec Total 939 | 99 84 47 436 273 Wait 12 | 12 . . . . Move 837 | 52 83 47 411 244 Hop . | . . . . . Pick Up 19 | 12 1 . 3 3 Fast Attach 2 | 1 . . . 1 Attach 13 | 6 . . 2 5 Detach . | . . . . . Swap 4 | . . . 1 3 Drop 7 | . . . 1 6 Fire 45 | 16 . . 18 11 Melee . | . . . . . Ram . | . . . . . Kick . | . . . . . Crush . | . . . . . Escape Stasis . | . . . . . Rewire . | . . . . . Trap . | . . . . . Miscellaneous . | . . . . . Route ------- -11/Scrapyard -10/Materials -10/Mines -10/Subcaves -9/Recycling History --------- Turn | Location | Event 6 | -11/Scrapyard | Discovered new exit (range 16) 121 | -11/Scrapyard | Entered Materials 195 | -10/Materials | Discovered new exit (range 6) 205 | -10/Materials | Entered Mines 251 | -10/Mines | Discovered new exit (range 3) 253 | -10/Mines | Entered Subcaves 254 | -10/Subcaves | Approached by a straggling Scientist 255 | -10/Subcaves | A swath of the cavern ceiling suddenly collapsed 312 | -10/Subcaves | Build established: Mutant 467 | -10/Subcaves | Visited Clippyterm 470 | -10/Subcaves | Identified exit to Recycling 470 | -10/Subcaves | Learned Factory stockpile data 610 | -10/Subcaves | Shifting Twisted Machinery released Sub. Monowheel 641 | -10/Subcaves | Learned location of Zion (-7) 641 | -10/Subcaves | Met a Zionite searching for "candidates" 642 | -10/Subcaves | Shifting Twisted Machinery released Sub. Machine Gun 643 | -10/Subcaves | Shifting Twisted Machinery released Sub. Machine Gun 687 | -10/Subcaves | Core integrity fell below 50% 690 | -10/Subcaves | Entered Recycling 879 | -9/Recycling | Scanned before Scraplab entrance 891 | -9/Recycling | Entered Scraplab 898 | -9/Recycling | Discovered new exit (range 3) 910 | -9/Recycling | Angered Scraplab inhabitants 926 | -9/Recycling | Core integrity fell below 20% 926 | -9/Recycling | Found Prototype Device 926 | -9/Recycling | Identified Scrap Engine 931 | -9/Recycling | Destroyed by 6K-I3E(j) with Overtuned Pulse Rifle Last Messages --------------- 00913_ 6K-I3E(j): "Defend the Scraplab!" 00914_ Supplies damaged. 00915_ Machine disabled. Prototype Device integrity failing. 00920_ Wheel destroyed. 00921_ Sub. Machine Gun destroyed. 00923_ Hvy. Assault Rifle destroyed. 00923_ Critical hit (Burn: +50). 00924_ YK-3R4(j) heat short circuits Mak. Salvage Targeting Computer. 00925_ NL-86E(j) heat spikes uncontrollably. 00925_ Critical hit (Burn: +50). 00925_ Dropped Seismic Detector. 00926_ Dropped Sml. Storage Unit. 00926_ Acquired Prototype Device. 00926_ Identified Scrap Engine. 00928_ Imp. Ion Engine destroyed. 00930_ Machine disabled. 00930_ Lgt. Deuterium Engine melted. 00930_ NL-86E(j) destroyed. Map ----- +----------------------------------------------------+ | | | | | | | | | | | | | | | | | | | | | | | | | | | | | | | | | | | | | | | | | | | | | ?????????????????????############????????????????? | | ?????????????????????#"""""""#< #????????????????? | | ?????????????????????# " X ## #????????????????? | | ???????????????####### !@! j #????????????????? | | ??????????????## j;= [! c #????????????????? | | ??????????????# #####% #????????????????? | | ??????????????## #???# c ""#????????????????? | | ???????????????# #???# & "& X ""#????????????????? | | ???????????????# #???#"""""""" #????????????????? | | ????????????#####################????????????????? | | ????????????# #????????????????????????????? | | ????????????# #????????????????????????????? | | ????????????# #????????????????????????????? | | ????????????# #????????????????????????????? | | ######??????####+####????????????????????????????? | | #?????????# #?????########??????????????????? | | #?????????# ####### % #??????????????????? | | #?????????# +% = !#??????????????????? | | #?????????#### #### #??????????????????? | | #????????????# #??# ! #??????????????????? | | #????????????# #??# [ #??????????????????? | | #????????????# #??# ! #??????????????????? | | ##???????????# #??# ! #??????????????????? | | #???????????# #??# ]#??????????????????? | | ##???????????# #??# / #??????????????????? | | #????????????# #??#! #??????????????????? | | #?#######????# #??? #??????????????????? | | ######## ###### #######+#########+#??????????? | +----------------------------------------------------+ Best States ------------- Heat Dissipation 25 Energy Generation 12 Energy Capacity 265 Matter Stores 300 Matter Capacity 300 Sight Range 16 Terrain Scan Density 10 Evasion (%) 50 Item Schematics ----------------- Arm. Huge Wheel | -9/Recycling | Hacked Robot Schematics ------------------ None Fabricated ------------ Nothing Repaired ---------- Nothing Studied --------- None Alien Tech Used ----------------- None Achievements -------------- None Challenges ------------ None Game ------ Seed PulseLongswordAutogun Manual? 0 Play Time 00:12:53 Cumulative 120.0 hours Start 2026.01.06 @ 22:19:30 End 2026.01.08 @ 20:56:46 Sessions 2 Manual Loads 0 Difficulty Rogue Special Mode None Game No. 173 Rogue 173 Adventurer 0 Explorer 0 Win Type - Total 1 Types 1/0/0/0/0/0/0/0/0/0 Lore% 61 Gallery% 56 Achievement% 42 Wizard Run 0 Options --------- Layout 2 ASCII 0 Keyboard 0 Movement Mouse Keybinds 0 Fullscreen 1 Font 16/SmallcapsGlow Map View 25x24 Zoom Use 98% Tactical HUD 1 Map Filters NONE Filters NONE Steam SD RUN: 6d9a39a4-60fb-40e4-95b4-dcac5318917b